fUSD/lending_fUSD_20240804
["ID","MTS","AMOUNT","RATE_DAILY","PERIOD"]
[334084245,1722751841022,-150.0,0.00017768,2]
[334084246,1722751841033,-151.0,0.00017769,2]
[334084247,1722751841045,-1500.0,0.0001777,2]
[334084248,1722751841055,-300.0,0.00017773,2]
[334084249,1722751841064,-1500.0,0.00017775,2]
[334084250,1722751841073,-1500.0,0.00017782,2]
[334084251,1722751841083,-155.0,0.00017782,2]
[334084252,1722751841092,-155.0,0.00017782,2]
[334084253,1722751841104,-150.0,0.00017785,2]
[334084254,1722751841113,-882.81880814,0.00017787,2]
[334084255,1722751841123,-3781.6472802,0.00017788,2]
[334084256,1722751841132,-62410.9175572,0.0001779,2]
[334084257,1722751841143,-1929.5366061,0.0001779,2]
[334084258,1722751841152,-300.0,0.00017792,2]
[334084259,1722751841163,-1386.34810536,0.00017795,2]
[334084260,1722751841172,-150.0,0.00017796,2]
[334084261,1722751841181,-150.0,0.00017797,2]
[334084262,1722751841191,-150.0,0.00017798,2]
[334084263,1722751841201,-1500.0,0.00017799,2]
[334084264,1722751841211,-89896.51332413,0.000178,2]
[334084265,1722751841222,-151.0,0.000178,2]
[334084266,1722751841234,-151.0,0.000178,2]
[334084267,1722751841244,-151.0,0.000178,2]
[334084268,1722751841254,-395.610157,0.000178,2]
[334084269,1722751841264,-151.683561,0.000178,2]
[334084270,1722751841273,-151.683561,0.000178,2]
[334084271,1722751841285,-151.0,0.000178,2]
[334084272,1722751841294,-151.0,0.000178,2]
[334084273,1722751841304,-151.0,0.000178,2]
[334084274,1722751841313,-544.431427,0.000178,2]
[334084275,1722751841323,-151.0,0.000178,2]
[334084276,1722751841332,-544.431427,0.000178,2]
[334084277,1722751841341,-151.0,0.000178,2]
[334084278,1722751841351,-151.0,0.000178,2]
[334084279,1722751841363,-151.0,0.000178,2]
[334084280,1722751841372,-151.0,0.000178,2]
[334084281,1722751841383,-333.395935,0.000178,2]
[334084282,1722751841393,-333.395935,0.000178,2]
[334084283,1722751841402,-452.88435,0.000178,2]
[334084284,1722751841412,-452.88435,0.000178,2]
[334084286,1722751841424,-151.0,0.000178,2]
[334084289,1722751841436,-151.0,0.000178,2]
[334084291,1722751841454,-151.0,0.000178,2]
[334084293,1722751841464,-894.881804,0.000178,2]
[334084295,1722751841473,-275.344649,0.000178,2]
[334084297,1722751841483,-894.881804,0.000178,2]
[334084299,1722751841492,-151.0,0.000178,2]
[334084301,1722751841503,-251.899308,0.000178,2]
[334084303,1722751841512,-251.899308,0.000178,2]
[334084305,1722751841521,-151.0,0.000178,2]
[334084307,1722751841531,-294.299051,0.000178,2]
[334084309,1722751841541,-344.490723,0.000178,2]
[334084311,1722751841550,-344.490723,0.000178,2]
[334084313,1722751841559,-151.0,0.000178,2]
[334084315,1722751841569,-151.0,0.000178,2]
[334084317,1722751841578,-151.0,0.000178,2]
[334084319,1722751841588,-151.0,0.000178,2]
[334084321,1722751841598,-151.0,0.000178,2]
[334084323,1722751841608,-151.0,0.000178,2]
[334084325,1722751841619,-177.069392,0.000178,2]
[334084327,1722751841628,-790.821896,0.000178,2]
[334084329,1722751841638,-790.821896,0.000178,2]
[334084331,1722751841648,-1233.159659,0.000178,2]
[334084333,1722751841658,-151.0,0.000178,2]
[334084335,1722751841667,-1233.159659,0.000178,2]
[334084337,1722751841677,-154.408532,0.000178,2]
[334084340,1722751841688,-151.0,0.000178,2]
[334084342,1722751841698,-154.408532,0.000178,2]
[334084344,1722751841708,-151.0,0.000178,2]
[334084346,1722751841718,-328.739883,0.000178,2]
[334084348,1722751841727,-151.0,0.000178,2]
[334084350,1722751841736,-252.976739,0.000178,2]
[334084352,1722751841747,-328.739883,0.000178,2]
[334084354,1722751841756,-252.976739,0.000178,2]
[334084356,1722751841765,-151.0,0.000178,2]
[334084358,1722751841774,-151.0,0.000178,2]
[334084360,1722751841783,-151.0,0.000178,2]
[334084362,1722751841792,-964.765401,0.000178,2]
[334084364,1722751841802,-964.765401,0.000178,2]
[334084366,1722751841811,-154.53426,0.000178,2]
[334084368,1722751841821,-154.53426,0.000178,2]
[334084370,1722751841830,-226.512782,0.000178,2]
[334084372,1722751841839,-151.0,0.000178,2]
[334084374,1722751841848,-226.512782,0.000178,2]
[334084376,1722751841858,-151.0,0.000178,2]
[334084378,1722751841867,-230.37193,0.000178,2]
[334084380,1722751841876,-230.37193,0.000178,2]
[334084382,1722751841885,-509.001744,0.000178,2]
[334084384,1722751841895,-151.0,0.000178,2]
[334084386,1722751841904,-509.001744,0.000178,2]
[334084388,1722751841913,-363.873105,0.000178,2]
[334084390,1722751841922,-363.873105,0.000178,2]
[334084392,1722751841931,-150.0,0.00017803,2]
[334084394,1722751841940,-150.0,0.00017803,2]
[334084415,1722751842227,-1500.0,0.00017809,2]
[334084416,1722751842237,-150.0,0.00017811,2]
[334084418,1722751842247,-150.0,0.00017814,2]
[334084420,1722751842256,-150.0,0.00017814,2]
[334084422,1722751842265,-150.0,0.00017814,2]
[334084424,1722751842274,-170.26857211,0.00017814,2]
[334084426,1722751842284,-1500.0,0.00017816,2]
[334084428,1722751842293,-150.0,0.00017821,2]
[334084430,1722751842302,-150.0,0.00017825,2]
[334084432,1722751842312,-150.0,0.00017827,2]
[334084434,1722751842321,-150.0,0.0001783,2]
[334084436,1722751842331,-150.0,0.00017831,2]
[334084438,1722751842341,-150.0,0.00017832,2]
[334084440,1722751842350,-150.0,0.00017834,2]
[334084441,1722751842361,-150.0,0.00017837,2]
[334084442,1722751842372,-150.0,0.00017841,2]
[334084443,1722751842381,-1500.0,0.00017842,2]
[334084444,1722751842390,-12482.1835114,0.00017844,2]
[334084445,1722751842399,-150.0,0.00017846,2]
[334084446,1722751842408,-150.0,0.00017847,2]
[334084447,1722751842418,-1500.0,0.00017854,2]
[334084448,1722751842427,-150.0,0.00017856,2]
[334084449,1722751842440,-150.0,0.00017856,2]
[334084450,1722751842449,-150.0,0.00017859,2]
[334084451,1722751842458,-150.0,0.0001786,2]
[334084452,1722751842467,-150.0,0.00017864,2]
[334084453,1722751842477,-203.44,0.00017865,2]
[334084454,1722751842488,-1500.0,0.00017866,2]
[334084455,1722751842497,-150.0,0.0001787,2]
[334084456,1722751842507,-150.0,0.0001787,2]
[334084457,1722751842519,-1500.0,0.00017875,2]
[334084458,1722751842529,-150.0,0.00017875,2]
[334084459,1722751842540,-207.30935474,0.00017877,2]
[334084461,1722751842549,-150.0,0.00017878,2]
[334084463,1722751842559,-150.0,0.0001788,2]
[334084465,1722751842568,-1500.0,0.00017882,2]
[334084467,1722751842578,-150.0,0.00017884,2]
[334084469,1722751842588,-150.0,0.00017886,2]
[334084471,1722751842598,-150.0,0.0001789,2]
[334084473,1722751842609,-150.0,0.00017893,2]
[334084475,1722751842627,-150.0,0.00017897,2]
[334084477,1722751842637,-1500.0,0.000179,2]
[334084479,1722751842647,-300.0,0.0001791,2]
[334084481,1722751842656,-1360.08920782,0.00017911,2]
[334084484,1722751842666,-1500.0,0.0001792,2]
[334084486,1722751842676,-300.0,0.00017921,2]
[334084488,1722751842686,-167.0,0.00017921,2]
[334084490,1722751842695,-150.0,0.00017927,2]
[334084492,1722751842705,-150.0,0.00017928,2]
[334084494,1722751842714,-150.0,0.0001793,2]
[334084496,1722751842724,-300.0,0.00017931,2]
[334084498,1722751842734,-1500.0,0.00017931,2]
[334084500,1722751842743,-150.0,0.00017931,2]
[334084502,1722751842754,-150.0,0.00017931,2]
[334084504,1722751842764,-150.0,0.00017935,2]
[334084506,1722751842774,-150.0,0.0001794,2]
[334084508,1722751842783,-150.0,0.00017942,2]
[334084510,1722751842793,-150.0,0.00017943,2]
[334084512,1722751842803,-1500.0,0.00017951,2]
[334084514,1722751842812,-643.1788687,0.00017952,2]
[334084516,1722751842821,-1500.0,0.00017952,2]
[334084518,1722751842831,-150.0,0.00017952,2]
[334084520,1722751842841,-150.0,0.00017954,2]
[334084522,1722751842850,-1500.0,0.00017958,2]
[334084524,1722751842862,-300.0,0.00017962,2]
[334084526,1722751842871,-150.0,0.00017962,2]
[334084528,1722751842881,-12482.1835114,0.00017962,2]
[334084530,1722751842891,-896.00573749,0.0001797,2]
[334084532,1722751842902,-150.0,0.00017971,2]
[334084534,1722751842912,-150.0,0.00017972,2]
[334084537,1722751842921,-150.0,0.00017972,2]
[334084540,1722751842932,-150.0,0.00017976,2]
[334084543,1722751842943,-152.34022103,0.00017981,2]
[334084545,1722751842952,-24964.3670229,0.0001799,2]
[334084547,1722751842962,-1929.5366061,0.0001799,2]
[334084549,1722751842971,-150.0,0.00017994,2]
[334084551,1722751842981,-1500.0,0.00017996,2]
[334084553,1722751842991,-894.881804,0.00017999,2]
[334084556,1722751843001,-894.881804,0.00017999,2]
[334084558,1722751843011,-151.0,0.00017999,2]
[334084560,1722751843020,-251.899308,0.00017999,2]
[334084562,1722751843029,-251.899308,0.00017999,2]
[334084564,1722751843039,-151.0,0.00017999,2]
[334084567,1722751843049,-344.490723,0.00017999,2]
[334084569,1722751843058,-344.490723,0.00017999,2]
[334084571,1722751843067,-151.0,0.00017999,2]
[334084573,1722751843077,-151.0,0.00017999,2]
[334084575,1722751843086,-790.821896,0.00017999,2]
[334084577,1722751843095,-790.821896,0.00017999,2]
[334084579,1722751843104,-154.408532,0.00017999,2]
[334084580,1722751843114,-154.408532,0.00017999,2]
[334084581,1722751843123,-964.765401,0.00017999,2]
[334084582,1722751843133,-964.765401,0.00017999,2]
[334084583,1722751843143,-154.53426,0.00017999,2]
[334084584,1722751843152,-154.53426,0.00017999,2]
[334084586,1722751843162,-226.512782,0.00017999,2]
[334084588,1722751843171,-151.0,0.00017999,2]
[334084590,1722751843180,-226.512782,0.00017999,2]
[334084592,1722751843189,-151.0,0.00017999,2]
[334084594,1722751843198,-230.37193,0.00017999,2]
[334084596,1722751843208,-230.37193,0.00017999,2]
[334084598,1722751843217,-509.001744,0.00017999,2]
[334084600,1722751843226,-151.0,0.00017999,2]
[334084602,1722751843236,-509.001744,0.00017999,2]
[334084604,1722751843245,-151.0,0.00017999,2]
[334084606,1722751843255,-363.873105,0.00017999,2]
[334084609,1722751843264,-363.873105,0.00017999,2]
[334084611,1722751843274,-151.0,0.00017999,2]
[334084614,1722751843283,-535.4951403,0.00018,2]
[334084617,1722751843292,-151.0,0.00018,2]
[334084620,1722751843302,-700.0,0.00018,2]
[334084623,1722751843311,-151.0,0.00018,2]
[334084625,1722751843321,-151.0,0.00018,2]
[334084628,1722751843331,-151.0,0.00018,2]
[334084629,1722751843340,-395.610157,0.00018,2]
[334084631,1722751843350,-395.610157,0.00018,2]
[334084632,1722751843360,-151.683561,0.00018,2]
[334084633,1722751843369,-151.683561,0.00018,2]
[334084634,1722751843379,-151.683561,0.00018,2]
[334084635,1722751843389,-151.683561,0.00018,2]
[334084636,1722751843400,-151.0,0.00018,2]
[334084637,1722751843410,-151.0,0.00018,2]
[334084638,1722751843421,-151.0,0.00018,2]
[334084639,1722751843433,-151.0,0.00018,2]
[334084640,1722751843449,-151.0,0.00018,2]
[334084641,1722751843459,-151.0,0.00018,2]
[334084642,1722751843469,-544.431427,0.00018,2]
[334084643,1722751843479,-544.431427,0.00018,2]
[334084644,1722751843488,-151.0,0.00018,2]
[334084645,1722751843498,-151.0,0.00018,2]
[334084646,1722751843508,-544.431427,0.00018,2]
[334084647,1722751843518,-544.431427,0.00018,2]
[334084648,1722751843528,-151.0,0.00018,2]
[334084649,1722751843537,-210.89754,0.00018,2]
[334084650,1722751843547,-151.0,0.00018,2]
[334084651,1722751843556,-151.0,0.00018,2]
[334084652,1722751843566,-151.0,0.00018,2]
[334084653,1722751843575,-151.0,0.00018,2]
[334084654,1722751843586,-151.0,0.00018,2]
[334084655,1722751843596,-333.395935,0.00018,2]
[334084656,1722751843607,-236.939225,0.00018,2]
[334084657,1722751843616,-333.395935,0.00018,2]
[334084658,1722751843626,-333.395935,0.00018,2]
[334084659,1722751843635,-333.395935,0.00018,2]
[334084660,1722751843644,-452.88435,0.00018,2]
[334084661,1722751843654,-452.88435,0.00018,2]
[334084662,1722751843664,-452.88435,0.00018,2]
[334084663,1722751843673,-151.0,0.00018,2]
[334084664,1722751843683,-452.88435,0.00018,2]
[334084665,1722751843692,-198.4303,0.00018,2]
[334084666,1722751843701,-151.0,0.00018,2]
[334084667,1722751843711,-151.0,0.00018,2]
[334084668,1722751843720,-151.0,0.00018,2]
[334084669,1722751843730,-282.312013,0.00018,2]
[334084671,1722751843739,-894.881804,0.00018,2]
[334084672,1722751843749,-894.881804,0.00018,2]
[334084674,1722751843759,-2000.0,0.00018,2]
[334084675,1722751843768,-151.0,0.00018,2]
[334084676,1722751843777,-251.899308,0.00018,2]
[334084677,1722751843787,-251.899308,0.00018,2]
[334084678,1722751843796,-151.0,0.00018,2]
[334084679,1722751843806,-344.490723,0.00018,2]
[334084680,1722751843815,-344.490723,0.00018,2]
[334084681,1722751843825,-151.0,0.00018,2]
[334084682,1722751843835,-274.268272,0.00018,2]
[334084683,1722751843844,-151.0,0.00018,2]
[334084684,1722751843854,-151.0,0.00018,2]
[334084685,1722751843863,-188.061779,0.00018,2]
[334084686,1722751843872,-151.0,0.00018,2]
[334084687,1722751843882,-151.0,0.00018,2]
[334084688,1722751843891,-151.0,0.00018,2]
[334084689,1722751843901,-151.0,0.00018,2]
[334084690,1722751843910,-64269.0,0.00018,2]
[334084691,1722751843920,-790.821896,0.00018,2]
[334084692,1722751843929,-790.821896,0.00018,2]
[334084693,1722751843938,-1233.159659,0.00018,2]
[334084694,1722751843948,-1233.159659,0.00018,2]
[334084695,1722751843958,-151.0,0.00018,2]
[334084696,1722751843967,-151.0,0.00018,2]
[334084697,1722751843977,-1233.159659,0.00018,2]
[334084698,1722751843986,-1233.159659,0.00018,2]
[334084699,1722751843996,-154.408532,0.00018,2]
[334084700,1722751844005,-151.0,0.00018,2]
[334084701,1722751844014,-151.0,0.00018,2]
[334084702,1722751844023,-154.408532,0.00018,2]
[334084703,1722751844032,-151.0,0.00018,2]
[334084704,1722751844042,-151.0,0.00018,2]
[334084705,1722751844051,-328.739883,0.00018,2]
[334084706,1722751844061,-328.739883,0.00018,2]
[334084707,1722751844070,-204.870248,0.00018,2]
[334084708,1722751844079,-252.976739,0.00018,2]
[334084709,1722751844089,-252.976739,0.00018,2]
[334084710,1722751844098,-328.739883,0.00018,2]
[334084711,1722751844108,-328.739883,0.00018,2]
[334084712,1722751844118,-252.976739,0.00018,2]
[334084713,1722751844127,-252.976739,0.00018,2]
[334084714,1722751844136,-151.0,0.00018,2]
[334084715,1722751844147,-151.0,0.00018,2]
[334084716,1722751844157,-151.0,0.00018,2]
[334084717,1722751844166,-151.0,0.00018,2]
[334084718,1722751844175,-151.0,0.00018,2]
[334084719,1722751844184,-151.0,0.00018,2]
[334084720,1722751844194,-964.765401,0.00018,2]
[334084721,1722751844203,-964.765401,0.00018,2]
[334084722,1722751844213,-154.53426,0.00018,2]
[334084723,1722751844223,-154.53426,0.00018,2]
[334084724,1722751844233,-226.512782,0.00018,2]
[334084725,1722751844242,-151.0,0.00018,2]
[334084726,1722751844252,-226.512782,0.00018,2]
[334084727,1722751844261,-260.339894,0.00018,2]
[334084728,1722751844271,-230.37193,0.00018,2]
[334084729,1722751844280,-230.37193,0.00018,2]
[334084730,1722751844289,-509.001744,0.00018,2]
[334084731,1722751844299,-151.0,0.00018,2]
[334084732,1722751844308,-509.001744,0.00018,2]
[334084733,1722751844318,-151.0,0.00018,2]
[334084734,1722751844327,-363.873105,0.00018,2]
[334084735,1722751844336,-165.27334212,0.00018,2]
[334084736,1722751844346,-217.3982719,0.00018,2]
[334084737,1722751844356,-363.873105,0.00018,2]
[334084738,1722751844366,-151.0,0.00018,2]
[334084739,1722751844376,-2000.0,0.0001818,2]
[334084740,1722751844385,-175.143646,0.00018356,2]
[334084741,1722751844395,-2000.0,0.00018362,2]
[334084742,1722751844405,-1386.34810536,0.00018387,2]
[334084743,1722751844414,-320.0,0.00018398,2]
[334084744,1722751844423,-305.4128966,0.00018426,2]
[334084745,1722751844433,-4785.7535492,0.00018433,2]
[334084746,1722751844446,-643.1788687,0.00018435,2]
[334084747,1722751844456,-150.82,0.00018438,2]
[334084748,1722751844465,-530.48,0.00018438,2]
[334084749,1722751844474,-530.48,0.00018438,2]
[334084750,1722751844485,-528.23,0.00018438,2]
[334084751,1722751844494,-759.06,0.00018438,2]
[334084752,1722751844504,-167.0,0.00018444,2]
[334084753,1722751844517,-31021.87327674,0.00018445,2]
[334084754,1722751844527,-547.40182525,0.00018529,2]
[334084755,1722751844536,-300.0,0.00018531,2]
[334084756,1722751844547,-2000.0,0.00018545,2]
[334084757,1722751844558,-500.0,0.00018711,2]
[334084758,1722751844567,-169.241627,0.00018761,2]
[334084759,1722751844577,-151.0,0.00018761,2]
[334084760,1722751844586,-151.0,0.00018761,2]
[334084761,1722751844595,-151.0,0.00018761,2]
[334084762,1722751844605,-327.59,0.00018822,2]
[334084763,1722751844616,-150.0,0.00018863,2]
[334084764,1722751844626,-155.54,0.00018901,2]
[334084765,1722751844635,-161.077326,0.00018941,2]
[334084766,1722751844644,-179.06601,0.00018941,2]
[334084767,1722751844653,-176.230276,0.00018941,2]
[334084768,1722751844662,-193.51216,0.00018941,2]
[334084769,1722751844672,-964.765401,0.00018955,2]
[334084770,1722751844681,-964.765401,0.00018955,2]
[334084771,1722751844691,-154.53426,0.00018955,2]
[334084772,1722751844700,-154.53426,0.00018955,2]
[334084773,1722751844709,-226.512782,0.00018955,2]
[334084774,1722751844719,-151.0,0.00018955,2]
[334084775,1722751844729,-226.512782,0.00018955,2]
[334084776,1722751844738,-230.37193,0.00018955,2]
[334084777,1722751844748,-230.37193,0.00018955,2]
[334084778,1722751844757,-509.001744,0.00018955,2]
[334084779,1722751844766,-509.001744,0.00018955,2]
[334084780,1722751844775,-363.873105,0.00018955,2]
[334084781,1722751844784,-363.873105,0.00018955,2]
[334084782,1722751844794,-151.0,0.00018955,2]
[334084783,1722751844803,-151.0,0.00018955,2]
[334084784,1722751844812,-582.005533,0.00018955,2]
[334084785,1722751844823,-582.005533,0.00018955,2]
[334084786,1722751844832,-187.897139,0.00018955,2]
[334084787,1722751844841,-226.499242,0.00018955,2]
[334084788,1722751844851,-187.897139,0.00018955,2]
[334084789,1722751844861,-226.499242,0.00018955,2]
[334084790,1722751844870,-2380.853441,0.00018955,2]
[334084791,1722751844879,-2380.853441,0.00018955,2]
[334084792,1722751844889,-882.81880814,0.00018972,2]
[334084793,1722751844898,-1386.34810536,0.00018979,2]
[334084794,1722751844907,-2879.2109319,0.00018987,2]
[334084795,1722751844916,-1286.3577374,0.0001899,2]
[334084796,1722751844925,-155.0,0.00019,2]
[334084797,1722751844936,-836.63902508,0.00019,2]
[334084798,1722751844945,-151.0,0.00019,2]
[334084799,1722751844955,-151.0,0.00019,2]
[334084800,1722751844964,-151.0,0.00019,2]
[334084801,1722751844973,-151.0,0.00019,2]
[334084802,1722751844982,-151.0,0.00019,2]
[334084803,1722751844991,-151.0,0.00019,2]
[334084804,1722751845001,-395.610157,0.00019,2]
[334084805,1722751845010,-395.610157,0.00019,2]
[334084806,1722751845019,-151.683561,0.00019,2]
[334084807,1722751845029,-151.683561,0.00019,2]
[334084808,1722751845038,-151.0,0.00019,2]
[334084809,1722751845047,-151.0,0.00019,2]
[334084810,1722751845056,-151.0,0.00019,2]
[334084811,1722751845066,-544.431427,0.00019,2]
[334084812,1722751845075,-151.0,0.00019,2]
[334084813,1722751845084,-544.431427,0.00019,2]
[334084814,1722751845093,-151.0,0.00019,2]
[334084815,1722751845102,-151.0,0.00019,2]
[334084816,1722751845113,-333.395935,0.00019,2]
[334084817,1722751845122,-333.395935,0.00019,2]
[334084818,1722751845131,-452.88435,0.00019,2]
[334084819,1722751845140,-452.88435,0.00019,2]
[334084820,1722751845149,-151.0,0.00019,2]
[334084821,1722751845158,-894.881804,0.00019,2]
[334084822,1722751845167,-894.881804,0.00019,2]
[334084823,1722751845177,-180.599174,0.00019,2]
[334084824,1722751845186,-251.899308,0.00019,2]
[334084825,1722751845195,-251.899308,0.00019,2]
[334084826,1722751845204,-151.0,0.00019,2]
[334084827,1722751845213,-344.490723,0.00019,2]
[334084828,1722751845223,-344.490723,0.00019,2]
[334084829,1722751845232,-151.663305,0.00019,2]
[334084830,1722751845241,-151.0,0.00019,2]
[334084831,1722751845250,-151.0,0.00019,2]
[334084832,1722751845260,-151.0,0.00019,2]
[334084833,1722751845269,-790.821896,0.00019,2]
[334084834,1722751845278,-790.821896,0.00019,2]
[334084835,1722751845288,-1233.159659,0.00019,2]
[334084836,1722751845297,-151.0,0.00019,2]
[334084837,1722751845306,-1233.159659,0.00019,2]
[334084838,1722751845316,-154.408532,0.00019,2]
[334084839,1722751845325,-151.0,0.00019,2]
[334084840,1722751845334,-154.408532,0.00019,2]
[334084841,1722751845344,-151.423367,0.00019,2]
[334084842,1722751845356,-328.739883,0.00019,2]
[334084843,1722751845368,-252.976739,0.00019,2]
[334084844,1722751845379,-328.739883,0.00019,2]
[334084845,1722751845391,-275749.85953424,0.00019,2]
[334084846,1722751845412,-995.36520928,0.00019,2]
[334084847,1722751845425,-405.79384232,0.00019,2]
[334084848,1722751845440,-512.00123354,0.00019,2]
[334084849,1722751845453,-384.30158449,0.00019,2]
[334084850,1722751845467,-374.01758734,0.00019,2]
[334084851,1722751845480,-1736.01873398,0.00019,2]
[334084852,1722751845491,-103.92119543,0.00019,2]
[334084853,1722751845504,-149.05554357,0.00019,2]
[334084854,1722751845518,-151.447643,0.00019,2]
[334084855,1722751845529,-151.0,0.00019,2]
[334084856,1722751845540,-151.0,0.00019,2]
[334084857,1722751845551,-151.0,0.00019,2]
[334084858,1722751845563,-151.0,0.00019,2]
[334084859,1722751845574,-151.0,0.00019,2]
[334084860,1722751845586,-151.0,0.00019,2]
[334084861,1722751845597,-582.005533,0.00019,2]
[334084862,1722751845608,-582.005533,0.00019,2]
[334084863,1722751845621,-187.897139,0.00019,2]
[334084864,1722751845632,-226.499242,0.00019,2]
[334084865,1722751845643,-187.897139,0.00019,2]
[334084866,1722751845654,-226.499242,0.00019,2]
[334084867,1722751845664,-2380.853441,0.00019,2]
[334084868,1722751845676,-2380.853441,0.00019,2]
[334084869,1722751845687,-151.0,0.00019,2]
[334084870,1722751845697,-151.0,0.00019,2]
[334084871,1722751845709,-425.784214,0.00019,2]
[334084872,1722751845720,-151.0,0.00019,2]
[334084873,1722751845732,-151.0,0.00019,2]
[334084874,1722751845742,-425.784214,0.00019,2]
[334084875,1722751845753,-163.23428,0.00019,2]
[334084876,1722751845764,-151.0,0.00019,2]
[334084877,1722751845774,-151.0,0.00019,2]
[334084878,1722751845784,-151.0,0.00019,2]
[334084879,1722751845794,-2527.928567,0.00019,2]
[334084880,1722751845805,-1171.580454,0.00019,2]
[334084881,1722751845816,-324.876137,0.00019,2]
[334084882,1722751845825,-2527.928567,0.00019,2]
[334084883,1722751845838,-1171.580454,0.00019,2]
[334084884,1722751845851,-8000.0,0.00019,2]
[334084885,1722751845862,-324.876137,0.00019,2]
[334084886,1722751845874,-8000.0,0.00019,2]
[334084887,1722751845886,-151.0,0.00019,2]
[334084888,1722751845899,-291.436553,0.00019,2]
[334084889,1722751845910,-2683.499956,0.00019,2]
[334084890,1722751845925,-151.0,0.00019,2]
[334084891,1722751845937,-2683.499956,0.00019,2]
[334084892,1722751845947,-151.321915,0.00019,2]
[334084893,1722751845959,-508.174218,0.00019,2]
[334084894,1722751845976,-508.174218,0.00019,2]
[334084895,1722751845987,-300.270845,0.00019,2]
[334084896,1722751845997,-300.270845,0.00019,2]
[334084897,1722751846009,-151.0,0.00019,2]
[334084898,1722751846019,-151.0,0.00019,2]
[334084900,1722751846030,-158.92719,0.00019,2]
[334084902,1722751846041,-158.92719,0.00019,2]
[334084903,1722751846052,-151.0,0.00019,2]
[334084905,1722751846062,-470.397179,0.00019,2]
[334084907,1722751846073,-470.397179,0.00019,2]
[334084909,1722751846085,-367.620788,0.00019,2]
[334084911,1722751846096,-367.620788,0.00019,2]
[334084912,1722751846107,-151.0,0.00019,2]
[334084913,1722751846128,-151.0,0.00019,2]
[334084914,1722751846138,-1872.027995,0.00019,2]
[334084915,1722751846147,-1872.027995,0.00019,2]
[334084916,1722751846158,-155.0,0.00019045,2]
[334084917,1722751846170,-10291.24,0.000191,2]
[334084918,1722751846181,-175.143646,0.00019178,2]
[334084919,1722751846191,-535.56201513,0.0001924,2]
[334084920,1722751846202,-347.66898349,0.0001924,2]
[334084921,1722751846213,-210.8550453,0.0001924,2]
[334084922,1722751846223,-176.230276,0.00019257,2]
[334084923,1722751846233,-31021.87327674,0.00019367,2]
[334084924,1722751846243,-438.43306406,0.00019398,2]
[334084925,1722751846253,-179.06601,0.00019415,2]
[334084926,1722751846264,-155.0,0.00019451,2]
[334084927,1722751846274,-155.0,0.00019451,2]
[334084928,1722751846285,-155.0,0.00019451,2]
[334084929,1722751846295,-7505.0,0.00019463,7]